Cogmind - Beta 17 @@@ ROGUE MODE // 2026.07.17 @ 21:34:38 Player: Skysub Result: Destroyed by UN-YJL(R) with Subdweller Laser Performance ------------- Evolutions (0) 0 Regions Visited (1) 200 Robots Destroyed (18) 90 Value Destroyed (331) 331 Prototype IDs (1) 20 Alien Tech Used (0) 0 Bonus (5000) 5000 TOTAL SCORE: 5641 Bonus ------- Prayed to X0-1V1 5000 Cogmind --------- Core Integrity 0/250 Matter 114/300 Energy 1021/1050 System Corruption 2% Temperature Cool (6) Movement Rolling (140) Ox4 Location -10/Materials Parts ------- > --- POWER (1) -------- Ion Engine > --- PROPULSION (2) --- Light Treads Wheel > --- UTILITY (2) ------ High-capacity Storage Unit X0-1V1's Piety Tracker > --- WEAPON (2) ------- Light Assault Rifle Light Assault Rifle > --- INVENTORY (20) --- Structural Scanner Light Armor Plating Small Laser Light Assault Rifle Light Cannon Light Cannon Mining Laser Peak State ------------ > --- POWER ------------ Ion Engine > --- PROPULSION ------- Light Treads Wheel > --- UTILITY ---------- High-capacity Storage Unit X0-1V1's Piety Tracker > --- WEAPON ----------- Light Assault Rifle Light Assault Rifle > --- INVENTORY -------- Light Armor Plating Small Laser Light Assault Rifle Light Cannon Light Cannon [Rating: 19] Favorites ----------- Power Light Ion Engine Engine Light Ion Engine Propulsion Compact Wheel Treads Light Treads Wheel Compact Wheel Utility Structural Scanner Device Structural Scanner Storage High-capacity Storage Unit Weapon Light Assault Rifle Energy Gun Small Laser Ballistic Gun Light Assault Rifle Build | -11 -10 ------- Run | Yrd Mat Slots Evolved . | . . Power . | . . Propulsion . | . . Utility . | . . Weapon . | . . Parts Attached 15 | 6 9 Power 2 | 1 1 Engine 2 | 1 1 Core . | . . Reactor . | . . Propulsion 5 | 2 3 Treads 1 | . 1 Leg . | . . Wheel 4 | 2 2 Hover . | . . Flight . | . . Utility 4 | 1 3 Device 2 | . 2 Storage 2 | 1 1 Processor . | . . Hackware . | . . Protection . | . . Artifact . | . . Weapon 4 | 2 2 Energy Gun 1 | 1 . Energy Cannon . | . . Ballistic Gun 3 | 1 2 Ballistic Cannon . | . . Launcher . | . . Special Weapon . | . . Impact Weapon . | . . Slashing Weapon . | . . Piercing Weapon . | . . Special Melee Weapon . | . . Unidentified Prototypes 1 | . 1 Parts Lost 6 | . 6 Power 1 | . 1 Propulsion 3 | . 3 Utility . | . . Weapon 2 | . 2 Highest Loss Streak 4 | . 4 To Critical Strikes . | . . Average Backups 6 | 2 6 Power . | . . Propulsion 1 | 1 1 Utility . | . . Weapon 3 | . 3 Tool/Special . | . . Unused Backups 7 | . 7 Power 1 | . 1 Propulsion 1 | . 1 Utility 1 | . 1 Weapon 4 | . 4 Tool/Special . | . . Average Slot Usage (%) 96 | . 96 Engine 13 | . 13 Treads 5 | . 5 Wheel 21 | . 21 Device 12 | . 12 Storage 14 | . 14 Energy Gun 6 | . 6 Ballistic Gun 21 | . 21 Peak Build Rating 19 | 6 19 Average Rating 8 | 4 8 On Entrance 3 | . 6 Avg Prop Armor Cover (%) 13 | . 13 Naked Turns . | . . Heaviest Build 48 | 11 48 Greatest Support 32 | 32 32 Greatest Overweight (x) 4 | . 4 Average Overweight (x) 1 | . 1 Largest Inventory Capacity 20 | 8 20 Average Capacity 15 | 7 15 Most Carried 9 | 4 9 Average Carried 6 | 2 6 Final Capacity 20 | 8 20 Final Carried 7 | 4 7 Class Distribution -------------------- 100% | Mutant Dominant Class ---------------- Mutant | -10/Materials Resources | -11 -10 ----------- Run | Yrd Mat Matter Collected 353 | 168 185 Remotely . | . . Salvage Created 555 | . 555 Parts 32 | . 32 Haulers Intercepted 1 | . 1 Recyclers Shooed . | . . Parts Field Recycled . | . . Retrieved Matter . | . . Parts Self-Destructed . | . . Prevented . | . . Parts Restored . | . . Kills | -11 -10 ------- Run | Yrd Mat Combat Hostiles Destroyed 15 | . 15 Guns 15 | . 15 Classes Destroyed 5 | . 5 Hauler 1 | . 1 Recycler 1 | . 1 Watcher 1 | . 1 Swarmer 9 | . 9 Grunt 6 | . 6 Best Kill Streak 3 | . 3 Combat Bots Only 3 | . 3 Max Kills in Single Turn 1 | . 1 Gunslinging . | . . Exploded . | . . Melee . | . . Uniques/NPCs Destroyed . | . . Combat | -11 -10 -------- Run | Yrd Mat Hostile Shots Fired 74 | . 74 Missed 20 | . 20 Hits 54 | . 54 Projectile 54 | . 54 Damage Taken 666 | . 666 Core 251 | . 251 Absorbed by Shields . | . . Core Remaining (%) 100 | 100 . Volleys Fired 56 | . 56 Largest 2 | . 2 Hottest 60 | . 60 Shots Fired 107 | . 107 Gun 107 | . 107 Cannon . | . . Launcher . | . . Special . | . . Kinetic 76 | . 76 Thermal 31 | . 31 Explosive . | . . Electromagnetic . | . . Robot Hit Streak 17 | . 17 Robot Miss Streak 4 | . 4 Penetration Max . | . . Secondary Targets 3 | . 3 Max Gunslinging Chain 1 | . 1 Shots Hit Robots 68 | . 68 Core Hits 30 | . 30 Critical Kills . | . . Critical Parts Destroyed 1 | . 1 Critical Strikes 1 | . 1 Destroy 1 | . 1 Melee Attacks . | . . Impact . | . . Slashing . | . . Piercing . | . . Sneak Attacks . | . . Combat Hostiles . | . . Follow-up Attacks . | . . Damage Inflicted 760 | . 760 Guns 760 | . 760 Cannons . | . . Explosions . | . . Melee . | . . Ramming . | . . Kinetic 480 | . 480 Thermal 280 | . 280 Explosive . | . . Electromagnetic . | . . Impact . | . . Slashing . | . . Piercing . | . . Highest Corruption 2 | . 2 Average Corruption 1 | . 1 Corruption Purged . | . . Corruption Blocked . | . . Effects 5 | . 5 Matter Fused 2 | . 2 Energy Discharges 1 | . 1 Data Loss (major) 1 | . 1 Weapon Failures 1 | . 1 Overload Shots . | . . Overflow Damage . | . . Projectiles . | . . Explosions . | . . Melee . | . . Knockbacks . | . . Impact . | . . Kinetic . | . . Secondary . | . . Self-Inflicted Damage . | . . Shots . | . . Rammed . | . . Targets Rammed . | . . Kicked . | . . Crushed . | . . Highest Temperature 66 | . 66 Average Temperature 23 | . 23 Received Heat Transfer 183 | . 183 Siege Activations . | . . Martial Activations . | . . Shielding Activations . | . . Robots Disrupted . | . . Combat Hostiles . | . . Robots Corrupted . | . . Combat Hostiles . | . . Parts Fried . | . . Impact Corruptions . | . . Robots Melted . | . . Combat Hostiles . | . . Parts Melted . | . . Heat Transferred 625 | . 625 Parts Sabotaged . | . . Parts Stolen . | . . Parts Stripped . | . . Power Chain Reactions . | . . Alert | -11 -10 ------- Run | Yrd Mat Maximum Alert Level . | . . Low Security (%) 100 | 100 100 Level 1 . | . . Level 2 . | . . Level 3 . | . . Level 4 . | . . Level 5 . | . . High Security . | . . Max Security . | . . Peak Influence 148 | . 148 Initial . | . . Average 72 | . 77 Influence Increases 493 | . 493 Destroy 0b10 Robot/C 300 | . 300 Destroy 0b10 Robot/NC 15 | . 15 Destroy Leader 64 | . 64 Successful Hack 39 | . 39 Select Force Hacks 60 | . 60 Lose Combat Pursuer 15 | . 15 Influence Decreases 417 | . 417 Time Decay 357 | . 357 Lost Part 60 | . 60 Squads Dispatched 2 | . 2 Investigation 2 | . 2 Extermination . | . . Reinforcement . | . . Assault . | . . Garrison . | . . Intercept . | . . Searches Triggered . | . . Construction Impeded . | . . Haulers Reinforced . | . . Active Scanning Responses . | . . Cargo Convoy Interrupts . | . . Stealth | -11 -10 --------- Run | Yrd Mat Distress Signals 1 | . 1 Communications Jammed . | . . Distress Signals . | . . Times Spotted 24 | . 24 Peak Tracking Total 4 | . 4 Tactical Retreats 1 | . 1 Traps | -11 -10 ------- Run | Yrd Mat Traps Triggered 4 | . 4 Indirectly . | . . Trap Hack Attempts . | . . Triggered . | . . Disarmed . | . . Reprogrammed . | . . Reused . | . . Traps Extracted . | . . Installed . | . . Triggered . | . . Machines | -11 -10 ---------- Run | Yrd Mat Machines Disabled . | . . Max in Single Turn . | . . Machines Repaired . | . . Machines Dismantled . | . . Machines Sabotaged . | . . Overloaded Fab Kills . | . . Hacking | -11 -10 --------- Run | Yrd Mat Machines Accessed 9 | . 9 Terminals 7 | . 7 Fabricators . | . . Repair Stations . | . . Recycling Units 2 | . 2 Scanalyzers . | . . Garrison Access . | . . Total Hacks 21 | . 21 Successful 15 | . 15 Failed 6 | . 6 Catastrophic . | . . Database Lockouts . | . . Manual 19 | . 19 Terminals 17 | . 17 Fabricators . | . . Repair Stations . | . . Recycling Units 4 | . 4 Scanalyzers . | . . Garrison Access . | . . Terminal Hacks 2 | . 2 Robot Analysis 1 | . 1 Terminal Index 1 | . 1 Fabricator Hacks . | . . Repair Station Hacks . | . . Recycling Unit Hacks 2 | . 2 Report Inventory 2 | . 2 Scanalyzer . | . . Garrison Access Hacks . | . . Unauthorized Hacks 11 | . 11 Terminals 9 | . 9 Botnet 2 | . 2 Skim 7 | . 7 Fabricators . | . . Repair Stations . | . . Recycling Units 2 | . 2 Tunnel 2 | . 2 Scanalyzers . | . . Garrison Access . | . . Data Cores Recovered . | . . Used . | . . Hacking Detections 8 | . 8 Full Trace Events . | . . Feedback Events . | . . Feedback Blocked . | . . Robot Schematics Acquired . | . . Robots Built . | . . Authchips . | . . Time . | . . Total Robot Build Rating . | . . Part Schematics Acquired . | . . Parts Built . | . . Authchips . | . . Time . | . . Total Part Build Rating . | . . Part Studies Acquired . | . . Parts Repaired . | . . Time . | . . Parts Recycled . | . . Recycled Matter . | . . Retrieved Matter . | . . Retrieved Components . | . . Parts Scanalyzed . | . . Part Schematics Acquired . | . . Parts Damaged . | . . Bothacking | -11 -10 ------------ Run | Yrd Mat Used RIF Installer . | . . Robots Hacked . | . . Non-combat . | . . Combat . | . . Robot Hacks Applied . | . . Relay Couplers Released . | . . Fabnet Peak Effective % . | . . Robots Rewired . | . . Allies Hacked . | . . Hacks Repelled . | . . Allies | -11 -10 -------- Run | Yrd Mat Total Allies . | . . Largest Group . | . . Highest-Rated Group . | . . Highest-Rated Ally . | . . Total Orders . | . . Ally Attacks . | . . Total Damage . | . . Kills . | . . Allies Corrupted . | . . Allies Melted . | . . X0-1V1 Amusement Gains 14 | . 14 Good Acts 1 | . 1 Intel | -11 -10 ------- Run | Yrd Mat Active Infowar (turns) 633 | . 633 Structural 633 | . 633 Robot Analysis Total 1 | . 1 Derelict Logs Recovered . | . . Drone Launches . | . . Drone Recoveries . | . . Exploration | -11 -10 ------------- Run | Yrd Mat Turns Passed 924 | 54 870 Spaces Moved 586 | 43 543 Core 2 | 2 . Treads 3 | . 3 Legs . | . . Wheels 581 | 41 540 Hover . | . . Flight . | . . Fastest Speed 50 | 50 100 Average Speed 116 | 97 118 Slowest Speed 320 | 100 320 Overloaded Moves . | . . Propulsion Burnouts . | . . Robots Hopped . | . . Potential Cave-ins . | . . Cave-ins Triggered . | . . Exploration Rate (%) 49 | 4 95 Regions Visited 1 Branch Regions . Pre-discovered Areas 5 | . 5 Known Exits Taken . | . . Unknown Exits Taken 1 | 1 . Scrap Searched . | . . Spaces Dug . | . . Terrain Destroyed . | . . Melee . | . . Projectile . | . . AOE . | . . Terrain Rammed . | . . Walls Destroyed . | . . Machines Disabled . | . . Actions | -11 -10 --------- Run | Yrd Mat Total 719 | 52 667 Wait 41 | . 41 Move 585 | 42 543 Hop . | . . Pick Up 15 | 4 11 Fast Attach 11 | 6 5 Attach 6 | . 6 Detach . | . . Swap 2 | . 2 Drop 3 | . 3 Fire 56 | . 56 Melee . | . . Ram . | . . Kick . | . . Crush . | . . Escape Stasis . | . . Rewire . | . . Trap . | . . Miscellaneous . | . . Route ------- -11/Scrapyard -10/Materials (discovered 5 exits: [*Mat x3] / [*Min] / [*Sub]) History --------- Turn | Location | Event 37 | -11/Scrapyard | Discovered new exit (range 16) 55 | -11/Scrapyard | Entered Materials 207 | -10/Materials | Discovered new exit (range 9) 223 | -10/Materials | Discovered new exit (range 3) 304 | -10/Materials | Build established: Mutant 368 | -10/Materials | Discovered new exit (range 7) 461 | -10/Materials | Loaded intel: 8 terminal locations 486 | -10/Materials | Learned 2 Mines zone layouts 490 | -10/Materials | Core integrity fell below 50% 499 | -10/Materials | Learned location of Recycling (-8) 500 | -10/Materials | Learned location of 2 exits from Subcaves 543 | -10/Materials | Learned location of Storage (-8) 578 | -10/Materials | Core integrity fell below 20% 616 | -10/Materials | Lost 4 parts (1p2n1w) 693 | -10/Materials | Discovered new exit (range 14) 767 | -10/Materials | Discovered new exit (range 5) 783 | -10/Materials | Prayed at D.C.S.S. Altar Unit 855 | -10/Materials | Derelicts attacked the area 925 | -10/Materials | Destroyed by UN-YJL(R) with Subdweller Laser Last Messages --------------- within the floor. 00852_ Lgt. Treads severed. 00854_ Acquired Lgt. Treads. 00855_ ALERT: Derelict incursion detected, dispatching patrols to target area. 00856_ U-05 Engineer lays Concrete. 00871_ Triggered Blade Trap. 00871_ Massive razor-sharp blades shoot up from within the floor. 00871_ Lgt. Treads severed. 00871_ Wheel severed. 00871_ Lgt. Assault Rifle severed. 00872_ Acquired Lgt. Treads. 00875_ U-05 Engineer lays Concrete. 00877_ Acquired Lgt. Assault Rifle. 00885_ Acquired Wheel. 00901_ System corrupted: Substantial component data lost. 00910_ Acquired Mining Laser. 00925_ X0-1V1 chuckles heartily! Map ----- +----------------------------------------------------+ | # """" # ## # # "" | | # # + = # # "" | | # # ### # # "" | | # # ############# #### | | ######## " ############# #### | | ####### #"T"######### % | | ?????## | | ?????## """"" #### | | ?????## """" """% #### | | ?????## """" "T"= [ #########?# | | ?????## " " ! ########??# | | ?????## ##????????# | | ?????## """" ##????????# | | ?????## """" ###+####### ##????????# | | ?????## """" # ## ##????????# | | ?????## # ??????## #########?# | | ?????## # ??????## #########?# | | ?????## """ # ???????## # ?? | | ?????## """% # ## # """ ??? | | ?????## """% ########### # """"" ??? | | ?????## = %= # """"" ??? | | ?????## + """"" ??? | | ?????## R # """ ??? | | ???#### ########## # ## | | ???#### "Y" ########## # ## | | ???## %[ """ @##??????## # ## | | ???## < R ; ??????## ########### | | ???## R ###?????## | | ######### #####+#####????## ########### | | ######### # ####### ########### | | #X### # # ########+############ | | ## # ## # | | #< # # """ ## [ # | | ## # # """ ## # | | ######### # ]] """ ## " """"" # #### | | ? # # ] ## """"""""" # # | | ? " # # ## """ """ # # "" | | ? """ # ###/######## # # "" | | # """ # ### #?????############## # "" | | # """ # ### #################! + "" | | # "" + ###+## #??##! # "" | | # """ # ##! !# #??##! # "" | | # "" ### ## # #??##! # "" | | # """?### ## # #??##! # | | # " ???# ## # ######! #### | | ??! ????# ## # ######### #### | | ?#####????# ## # ## # #### | | ??????????# ## # | ## %#* # | | ??????????# ###+######+###### "" [%+!= + | | ??????????# #???## "Y [#= # | +----------------------------------------------------+ Best States ------------- Heat Dissipation 25 Energy Generation 10 Energy Capacity 1050 Matter Stores 300 Matter Capacity 300 Sight Range 16 Terrain Scan Density 10 Evasion (%) 40 Recoil Reduction 1 Item Schematics ----------------- None Robot Schematics ------------------ None Fabricated ------------ Nothing Repaired ---------- Nothing Studied --------- None Alien Tech Used ----------------- None Achievements -------------- None Challenges ------------ None Game ------ Seed FlyingThiefCharge Manual? 0 Play Time 00:08:48 Cumulative 333.8 hours Start 2026.07.17 @ 21:19:24 End 2026.07.17 @ 21:34:38 Sessions 1 Manual Loads 0 Difficulty Rogue Special Mode None Game No. 405 Rogue 405 Adventurer 0 Explorer 0 Win Type - Total 22 Types 14/0/3/1/1/0/1/1/0/1 Lore% 80 Gallery% 74 Achievement% 66 Wizard Run 0 Options --------- Layout 1 ASCII 0 Keyboard 1 Movement Arrows Keybinds 0 Fullscreen 2 Font 36/Smallcaps Map View 50x40 Zoom Use 0% Tactical HUD 1 Map Filters NONE Filters NONE Steam 1 RUN: f4eee253-2fd1-4ea4-905f-79e5256e5689